fUST/lending_fUST_20250729
["ID","MTS","AMOUNT","RATE_DAILY","PERIOD"]
[375918900,1753783865275,-633.19,0.00020273,2]
[375918901,1753783865284,-207.83819858,0.00020273,2]
[375918902,1753783865295,-460.0,0.00020273,2]
[375918903,1753783865305,-460.0,0.00020273,2]
[375918904,1753783865315,-460.0,0.00020273,2]
[375918905,1753783865324,-702.77,0.00020273,2]
[375918906,1753783865334,-460.0,0.00020273,2]
[375918907,1753783865343,-460.0,0.00020273,2]
[375918908,1753783865353,-460.0,0.00020273,2]
[375918909,1753783865362,-460.0,0.00020273,2]
[375918910,1753783865373,-460.0,0.00020273,2]
[375918911,1753783865383,-460.0,0.00020273,2]
[375918912,1753783865392,-1242.18,0.00020273,2]
[375918913,1753783865401,-460.0,0.00020273,2]
[375918914,1753783865411,-460.0,0.00020273,2]
[375918915,1753783865420,-460.0,0.00020273,2]
[375918916,1753783865430,-460.0,0.00020273,2]
[375918917,1753783865440,-460.0,0.00020273,2]
[375918918,1753783865451,-460.0,0.00020273,2]
[375918919,1753783865461,-726.44,0.00020273,2]
[375918920,1753783865470,-460.0,0.00020273,2]
[375918921,1753783865480,-460.0,0.00020273,2]
[375918922,1753783865489,-460.0,0.00020273,2]
[375918923,1753783865498,-575.02,0.00020273,2]
[375918924,1753783865510,-460.0,0.00020273,2]
[375918925,1753783865519,-460.0,0.00020273,2]
[375918926,1753783865528,-491.63408367,0.00020273,2]
[375918927,1753783865538,-460.0,0.00020273,2]
[375918928,1753783865547,-1966.53633467,0.00020273,2]
[375918929,1753783865556,-460.0,0.00020273,2]
[375918930,1753783865566,-4420.28204625,0.00020273,2]
[375918931,1753783865575,-460.0,0.00020273,2]
[375918932,1753783865584,-463.49270176,0.00020273,2]
[375918933,1753783865594,-460.0,0.00020273,2]
[375918934,1753783865603,-460.0,0.00020273,2]
[375918935,1753783865613,-686.44,0.00020273,2]
[375918936,1753783865622,-460.0,0.00020273,2]
[375918937,1753783865632,-460.0,0.00020273,2]
[375918938,1753783865641,-460.0,0.00020273,2]
[375918939,1753783865652,-609.24,0.00020273,2]
[375918940,1753783865661,-416.04399065,0.00020273,2]
[375918941,1753783865671,-460.0,0.00020273,2]
[375918942,1753783865680,-460.0,0.00020273,2]
[375918943,1753783865690,-646.06658116,0.00020273,2]
[375918944,1753783865700,-460.0,0.00020273,2]
[375918945,1753783865710,-1422.1,0.00020273,2]
[375918946,1753783865720,-457.02906027,0.00020273,2]
[375918947,1753783865729,-468.64712362,0.00020273,2]
[375918948,1753783865741,-460.0,0.00020273,2]
[375918949,1753783865756,-460.0,0.00020273,2]
[375918950,1753783865766,-460.0,0.00020273,2]
[375918951,1753783865775,-503.21,0.00020273,2]
[375918952,1753783865784,-460.0,0.00020273,2]
[375918953,1753783865794,-807.45,0.00020273,2]
[375918954,1753783865809,-460.0,0.00020273,2]
[375918955,1753783865819,-294.550465,0.00020273,2]
[375918956,1753783865828,-460.0,0.00020273,2]
[375918957,1753783865838,-460.0,0.00020273,2]
[375918958,1753783865847,-294.550465,0.00020273,2]
[375918959,1753783865857,-460.0,0.00020273,2]
[375918960,1753783865866,-460.0,0.00020273,2]
[375918961,1753783865875,-615.06,0.00020273,2]
[375918962,1753783865886,-460.0,0.00020273,2]
[375918963,1753783865895,-334.95322715,0.00020273,2]
[375918964,1753783865904,-460.0,0.00020273,2]
[375918965,1753783865914,-460.0,0.00020273,2]
[375918966,1753783865923,-460.0,0.00020273,2]
[375918967,1753783865933,-460.0,0.00020273,2]
[375918968,1753783865942,-460.0,0.00020273,2]
[375918969,1753783865952,-460.0,0.00020273,2]
[375918970,1753783865961,-460.0,0.00020273,2]
[375918971,1753783865971,-460.0,0.00020273,2]
[375918972,1753783865980,-2896.6,0.00020273,2]
[375918973,1753783865990,-460.0,0.00020273,2]
[375918974,1753783866000,-699.26,0.00020273,2]
[375918975,1753783866016,-460.0,0.00020273,2]
[375918976,1753783866026,-460.0,0.00020273,2]
[375918977,1753783866037,-460.0,0.00020273,2]
[375918978,1753783866046,-460.0,0.00020273,2]
[375918979,1753783866056,-460.0,0.00020273,2]
[375918980,1753783866180,-630.99,0.00020273,2]
[375918981,1753783866192,-460.0,0.00020273,2]
[375918982,1753783866201,-460.0,0.00020273,2]
[375918983,1753783866211,-460.0,0.00020273,2]
[375918984,1753783866220,-474.9,0.00020273,2]
[375918985,1753783866229,-460.0,0.00020273,2]
[375918986,1753783866239,-460.0,0.00020273,2]
[375918987,1753783866249,-460.0,0.00020273,2]
[375918988,1753783866261,-746.43,0.00020273,2]
[375918989,1753783866270,-460.0,0.00020273,2]
[375918990,1753783866279,-460.0,0.00020273,2]
[375918991,1753783866288,-460.0,0.00020273,2]
[375918992,1753783866298,-151.0,0.00020273,2]
[375918993,1753783866308,-480.13,0.00020273,2]
[375918994,1753783866317,-460.0,0.00020273,2]
[375918995,1753783866326,-460.0,0.00020273,2]
[375918996,1753783866336,-460.0,0.00020273,2]
[375918997,1753783866345,-460.0,0.00020273,2]
[375918998,1753783866355,-460.0,0.00020273,2]
[375918999,1753783866365,-460.0,0.00020273,2]
[375919000,1753783866375,-460.0,0.00020273,2]
[375919001,1753783866384,-460.0,0.00020273,2]
[375919002,1753783866394,-460.0,0.00020273,2]
[375919003,1753783866404,-460.0,0.00020273,2]
[375919004,1753783866414,-462.84851961,0.00020273,2]
[375919005,1753783866423,-525.50719325,0.00020273,2]
[375919006,1753783866433,-533.45,0.00020273,2]
[375919007,1753783866443,-460.0,0.00020273,2]
[375919008,1753783866452,-562.74622948,0.00020273,2]
[375919009,1753783866462,-612.42,0.00020273,2]
[375919010,1753783866472,-460.0,0.00020273,2]
[375919011,1753783866481,-1374.84,0.00020273,2]
[375919012,1753783866492,-460.0,0.00020273,2]
[375919013,1753783866501,-466.8775047,0.00020273,2]
[375919014,1753783866513,-460.0,0.00020273,2]
[375919015,1753783866523,-460.0,0.00020273,2]
[375919016,1753783866532,-460.0,0.00020273,2]
[375919017,1753783866541,-460.0,0.00020273,2]
[375919018,1753783866550,-1048.05,0.00020273,2]
[375919019,1753783866559,-3098.65,0.00020273,2]
[375919020,1753783866569,-460.0,0.00020273,2]
[375919021,1753783866578,-460.0,0.00020273,2]
[375919022,1753783866588,-460.0,0.00020273,2]
[375919023,1753783866598,-460.0,0.00020273,2]
[375919024,1753783866607,-311.68,0.00020273,2]
[375919025,1753783866616,-460.0,0.00020273,2]
[375919026,1753783866626,-460.0,0.00020273,2]
[375919027,1753783866636,-460.0,0.00020273,2]
[375919028,1753783866645,-460.0,0.00020273,2]
[375919029,1753783866654,-528.87262482,0.00020273,2]
[375919030,1753783866664,-9691.1,0.00020273,2]
[375919031,1753783866673,-460.0,0.00020273,2]
[375919032,1753783866683,-460.0,0.00020273,2]
[375919033,1753783866692,-629.2,0.00020273,2]
[375919034,1753783866702,-8482.62,0.00020273,2]
[375919035,1753783866712,-460.0,0.00020273,2]
[375919036,1753783866721,-549.29,0.00020273,2]
[375919037,1753783866730,-460.0,0.00020273,2]
[375919038,1753783866740,-151.0,0.00020273,2]
[375919039,1753783866752,-460.0,0.00020273,2]
[375919040,1753783866762,-460.0,0.00020273,2]
[375919041,1753783866772,-1078.37,0.00020273,2]
[375919042,1753783866781,-460.0,0.00020273,2]
[375919043,1753783866790,-460.0,0.00020273,2]
[375919044,1753783866801,-460.0,0.00020273,2]
[375919045,1753783866811,-460.0,0.00020273,2]
[375919046,1753783866820,-460.0,0.00020273,2]
[375919047,1753783866831,-636.63,0.00020273,2]
[375919048,1753783866840,-460.0,0.00020273,2]
[375919049,1753783866850,-460.0,0.00020273,2]
[375919050,1753783866860,-460.0,0.00020273,2]
[375919051,1753783866869,-460.0,0.00020273,2]
[375919052,1753783866878,-460.0,0.00020273,2]
[375919053,1753783866887,-460.0,0.00020273,2]
[375919054,1753783866896,-460.0,0.00020273,2]
[375919055,1753783866906,-1309.75,0.00020273,2]
[375919056,1753783866916,-460.0,0.00020273,2]
[375919057,1753783866925,-460.0,0.00020273,2]
[375919058,1753783866935,-460.0,0.00020273,2]
[375919059,1753783866944,-380.80680281,0.00020273,2]
[375919060,1753783866953,-460.0,0.00020273,2]
[375919061,1753783866963,-3451.62,0.00020273,2]
[375919062,1753783866972,-4669.88,0.00020273,2]
[375919063,1753783866981,-460.0,0.00020273,2]
[375919064,1753783866991,-460.0,0.00020273,2]
[375919065,1753783867000,-460.0,0.00020273,2]
[375919066,1753783867012,-460.0,0.00020273,2]
[375919067,1753783867025,-151.0,0.00020273,2]
[375919068,1753783867035,-460.0,0.00020273,2]
[375919069,1753783867045,-460.0,0.00020273,2]
[375919070,1753783867055,-460.0,0.00020273,2]
[375919071,1753783867065,-2598.43,0.00020273,2]
[375919072,1753783867075,-460.0,0.00020273,2]
[375919073,1753783867085,-460.0,0.00020273,2]
[375919074,1753783867094,-721.04,0.00020273,2]
[375919075,1753783867103,-463.70384834,0.00020273,2]
[375919076,1753783867113,-460.0,0.00020273,2]
[375919077,1753783867122,-460.0,0.00020273,2]
[375919078,1753783867132,-460.0,0.00020273,2]
[375919079,1753783867141,-264.30635117,0.00020273,2]
[375919080,1753783867151,-459.78723784,0.00020273,2]
[375919081,1753783867161,-460.0,0.00020273,2]
[375919082,1753783867170,-460.0,0.00020273,2]
[375919083,1753783867179,-780.2,0.00020273,2]
[375919084,1753783867189,-2181.94,0.00020273,2]
[375919085,1753783867199,-460.0,0.00020273,2]
[375919086,1753783867208,-2840.9,0.00020273,2]
[375919087,1753783867218,-460.0,0.00020273,2]
[375919088,1753783867227,-811.38,0.00020273,2]
[375919089,1753783867236,-939.56,0.00020273,2]
[375919090,1753783867246,-460.0,0.00020273,2]
[375919091,1753783867256,-460.0,0.00020273,2]
[375919092,1753783867265,-1185.45,0.00020273,2]
[375919093,1753783867275,-496.39,0.00020273,2]
[375919094,1753783867285,-460.0,0.00020273,2]
[375919095,1753783867294,-460.0,0.00020273,2]
[375919096,1753783867303,-460.0,0.00020273,2]
[375919097,1753783867313,-475.53,0.00020273,2]
[375919098,1753783867322,-460.0,0.00020273,2]
[375919099,1753783867332,-1580.91,0.00020273,2]
[375919100,1753783867342,-294.70802566,0.00020273,2]
[375919101,1753783867351,-838.44,0.00020273,2]
[375919102,1753783867360,-424.41792227,0.00020273,2]
[375919103,1753783867369,-460.0,0.00020273,2]
[375919104,1753783867379,-263.21469156,0.00020273,2]
[375919105,1753783867389,-460.0,0.00020273,2]
[375919106,1753783867398,-460.0,0.00020273,2]
[375919107,1753783867408,-460.0,0.00020273,2]
[375919108,1753783867418,-460.0,0.00020273,2]
[375919109,1753783867427,-460.0,0.00020273,2]
[375919110,1753783867436,-460.0,0.00020273,2]
[375919111,1753783867446,-460.0,0.00020273,2]
[375919112,1753783867456,-919.13,0.00020273,2]
[375919113,1753783867467,-151.0,0.00020273,2]
[375919114,1753783867478,-460.0,0.00020273,2]
[375919115,1753783867488,-460.0,0.00020273,2]
[375919116,1753783867498,-4042.77,0.00020273,2]
[375919117,1753783867509,-480.07,0.00020273,2]
[375919118,1753783867518,-460.0,0.00020273,2]
[375919119,1753783867527,-460.0,0.00020273,2]
[375919120,1753783867536,-460.0,0.00020273,2]
[375919121,1753783867547,-561.44,0.00020273,2]
[375919122,1753783867556,-460.0,0.00020273,2]
[375919123,1753783867566,-1387.53,0.00020273,2]
[375919124,1753783867575,-460.0,0.00020273,2]
[375919125,1753783867584,-460.0,0.00020273,2]
[375919126,1753783867594,-524.76,0.00020273,2]
[375919127,1753783867603,-494.38,0.00020273,2]
[375919128,1753783867612,-460.0,0.00020273,2]
[375919129,1753783867622,-460.0,0.00020273,2]
[375919130,1753783867631,-460.0,0.00020273,2]
[375919131,1753783867641,-1167.89,0.00020273,2]
[375919132,1753783867650,-460.0,0.00020273,2]
[375919133,1753783867660,-708.15,0.00020273,2]
[375919134,1753783867670,-460.0,0.00020273,2]
[375919135,1753783867680,-570.78643047,0.00020273,2]
[375919136,1753783867689,-460.0,0.00020273,2]
[375919137,1753783867699,-460.0,0.00020273,2]
[375919138,1753783867708,-460.0,0.00020273,2]
[375919139,1753783867719,-460.0,0.00020273,2]
[375919140,1753783867728,-3585.74,0.00020273,2]
[375919141,1753783867738,-2682.74,0.00020273,2]
[375919142,1753783867750,-460.0,0.00020273,2]
[375919143,1753783867763,-379.02337416,0.00020273,2]
[375919144,1753783867772,-749.01,0.00020273,2]
[375919145,1753783867781,-460.0,0.00020273,2]
[375919146,1753783867792,-460.0,0.00020273,2]
[375919147,1753783867802,-460.0,0.00020273,2]
[375919148,1753783867811,-3637.2,0.00020273,2]
[375919149,1753783867823,-460.0,0.00020273,2]
[375919150,1753783867832,-228.589995,0.00020273,2]
[375919151,1753783867842,-1571.099643,0.00020273,2]
[375919152,1753783867851,-460.0,0.00020273,2]
[375919153,1753783867861,-2891.35,0.00020273,2]
[375919154,1753783867872,-460.0,0.00020273,2]
[375919155,1753783867881,-1571.099643,0.00020273,2]
[375919156,1753783867890,-460.0,0.00020273,2]
[375919157,1753783867899,-461.56912124,0.00020273,2]
[375919158,1753783867908,-460.0,0.00020273,2]
[375919159,1753783867917,-970.09,0.00020273,2]
[375919160,1753783867927,-460.0,0.00020273,2]
[375919161,1753783867936,-463.08613846,0.00020273,2]
[375919162,1753783867945,-502.49,0.00020273,2]
[375919163,1753783867954,-460.0,0.00020273,2]
[375919164,1753783867964,-460.0,0.00020273,2]
[375919165,1753783867974,-460.0,0.00020273,2]
[375919166,1753783867983,-460.0,0.00020273,2]
[375919167,1753783867992,-460.0,0.00020273,2]
[375919168,1753783868003,-1131.72,0.00020273,2]
[375919169,1753783868013,-774.25,0.00020273,2]
[375919170,1753783868023,-2479.4,0.00020273,2]
[375919171,1753783868033,-464.29136141,0.00020273,2]
[375919172,1753783868042,-1333.14,0.00020273,2]
[375919173,1753783868051,-460.0,0.00020273,2]
[375919174,1753783868061,-460.0,0.00020273,2]
[375919175,1753783868070,-834.95,0.00020273,2]
[375919176,1753783868079,-460.0,0.00020273,2]
[375919177,1753783868089,-685.3,0.00020273,2]
[375919178,1753783868099,-460.0,0.00020273,2]
[375919179,1753783868109,-460.0,0.00020273,2]
[375919180,1753783868121,-1063.74,0.00020273,2]
[375919181,1753783868130,-810.23382741,0.00020279,3]
[375919182,1753783868140,-500.0,0.00020318,15]
[375919183,1753783868150,-500.92565472,0.00020321,2]
[375919184,1753783868159,-500.0,0.00020321,2]
[375919185,1753783868168,-500.0,0.00020321,2]
[375919186,1753783868177,-473.41162183,0.00020321,2]
[375919187,1753783868393,-526.58837817,0.00020321,2]
[375919188,1753783868403,-1000.0,0.00020348,2]
[375919189,1753783868413,-1680.0,0.00020355,2]
[375919190,1753783868421,-232.08699893,0.00020412,4]
[375919191,1753783868430,-810.23382741,0.00020417,3]
[375919192,1753783868438,-168.0,0.00020436,2]
[375919193,1753783868446,-160.0,0.00020443,2]
[375919194,1753783868455,-168.0,0.0002049,2]
[375919195,1753783868464,-500.0,0.00020533,2]
[375919196,1753783868474,-503.26606253,0.00020538,2]
[375919197,1753783868483,-500.60185691,0.00020538,2]
[375919198,1753783868494,-500.0,0.00020543,2]
[375919199,1753783868504,-460.0,0.00020547,2]
[375919200,1753783868514,-460.0,0.00020547,2]
[375919201,1753783868523,-460.0,0.00020547,2]
[375919202,1753783868533,-460.0,0.00020547,2]
[375919203,1753783868542,-463.62655097,0.00020547,2]
[375919204,1753783868551,-460.0,0.00020547,2]
[375919205,1753783868561,-460.0,0.00020547,2]
[375919206,1753783868569,-460.0,0.00020547,2]
[375919207,1753783868578,-199.63669138,0.00020547,2]
[375919208,1753783868587,-460.0,0.00020547,2]
[375919209,1753783868596,-463.51674081,0.00020547,2]
[375919210,1753783868725,-460.0,0.00020547,2]
[375919211,1753783868734,-349.36129447,0.00020547,2]
[375919212,1753783868744,-460.0,0.00020547,2]
[375919213,1753783868758,-460.0,0.00020547,2]
[375919214,1753783868766,-460.0,0.00020547,2]
[375919215,1753783868776,-596.80893635,0.00020547,2]
[375919216,1753783868784,-460.0,0.00020547,2]
[375919217,1753783868792,-464.24773841,0.00020547,2]
[375919218,1753783868802,-151.0,0.00020547,2]
[375919219,1753783868812,-460.0,0.00020547,2]
[375919220,1753783868823,-460.0,0.00020547,2]
[375919221,1753783868832,-369.22815066,0.00020547,2]
[375919222,1753783868842,-460.0,0.00020547,2]
[375919223,1753783868851,-460.0,0.00020547,2]
[375919224,1753783868860,-151.0,0.00020547,2]
[375919225,1753783868870,-460.0,0.00020547,2]
[375919226,1753783868879,-460.0,0.00020547,2]
[375919227,1753783868888,-460.0,0.00020547,2]
[375919228,1753783868898,-151.0,0.00020547,2]
[375919229,1753783868907,-460.0,0.00020547,2]
[375919230,1753783868916,-460.0,0.00020547,2]
[375919231,1753783868925,-460.0,0.00020547,2]
[375919232,1753783868935,-460.0,0.00020547,2]
[375919233,1753783868944,-460.0,0.00020547,2]
[375919234,1753783868955,-460.0,0.00020547,2]
[375919235,1753783868965,-460.0,0.00020547,2]
[375919236,1753783868974,-460.0,0.00020547,2]
[375919237,1753783868983,-460.0,0.00020547,2]
[375919238,1753783868992,-460.0,0.00020547,2]
[375919239,1753783869002,-460.0,0.00020547,2]
[375919240,1753783869013,-151.0,0.00020547,2]
[375919241,1753783869022,-460.0,0.00020547,2]
[375919242,1753783869031,-151.0,0.00020547,2]
[375919243,1753783869041,-151.0,0.00020547,2]
[375919244,1753783869050,-460.0,0.00020547,2]
[375919245,1753783869060,-460.0,0.00020547,2]
[375919246,1753783869070,-630.91,0.00020547,2]
[375919247,1753783869080,-460.0,0.00020547,2]
[375919248,1753783869090,-151.797321,0.00020547,2]
[375919249,1753783869099,-151.0,0.00020547,2]
[375919250,1753783869110,-460.0,0.00020547,2]
[375919251,1753783869122,-460.0,0.00020547,2]
[375919252,1753783869132,-460.0,0.00020547,2]
[375919253,1753783869141,-460.0,0.00020547,2]
[375919254,1753783869151,-460.0,0.00020547,2]
[375919255,1753783869161,-460.0,0.00020547,2]
[375919256,1753783869171,-460.0,0.00020547,2]
[375919257,1753783869180,-460.0,0.00020547,2]
[375919258,1753783869190,-460.0,0.00020547,2]
[375919259,1753783869200,-460.0,0.00020547,2]
[375919260,1753783869211,-460.0,0.00020547,2]
[375919261,1753783869222,-460.0,0.00020547,2]
[375919262,1753783869234,-633.19,0.00020547,2]
[375919263,1753783869244,-460.0,0.00020547,2]
[375919264,1753783869254,-460.0,0.00020547,2]
[375919265,1753783869265,-460.0,0.00020547,2]
[375919266,1753783869275,-460.0,0.00020547,2]
[375919267,1753783869285,-464.31744254,0.00020547,2]
[375919268,1753783869294,-702.77,0.00020547,2]
[375919269,1753783869304,-460.0,0.00020547,2]
[375919270,1753783869313,-460.0,0.00020547,2]
[375919271,1753783869323,-460.0,0.00020547,2]
[375919272,1753783869333,-460.0,0.00020547,2]
[375919273,1753783869342,-1242.18,0.00020547,2]
[375919274,1753783869352,-460.0,0.00020547,2]
[375919275,1753783869361,-460.0,0.00020547,2]
[375919276,1753783869371,-460.0,0.00020547,2]
[375919277,1753783869380,-460.0,0.00020547,2]
[375919278,1753783869390,-229.52,0.00020547,2]
[375919279,1753783869400,-726.44,0.00020547,2]
[375919280,1753783869409,-460.0,0.00020547,2]
[375919281,1753783869418,-460.0,0.00020547,2]
[375919282,1753783869428,-460.0,0.00020547,2]
[375919283,1753783869437,-575.02,0.00020547,2]
[375919284,1753783869446,-460.0,0.00020547,2]
[375919285,1753783869456,-460.0,0.00020547,2]
[375919286,1753783869465,-329.06143432,0.00020547,2]
[375919287,1753783869475,-460.0,0.00020547,2]
[375919288,1753783869484,-460.0,0.00020547,2]
[375919289,1753783869493,-460.0,0.00020547,2]
[375919290,1753783869503,-686.44,0.00020547,2]
[375919291,1753783869515,-460.0,0.00020547,2]
[375919292,1753783869525,-460.0,0.00020547,2]
[375919293,1753783869534,-609.24,0.00020547,2]
[375919294,1753783869543,-460.0,0.00020547,2]
[375919295,1753783869552,-460.0,0.00020547,2]
[375919296,1753783869562,-460.0,0.00020547,2]
[375919297,1753783869571,-1422.1,0.00020547,2]
[375919298,1753783869581,-460.0,0.00020547,2]
[375919299,1753783869590,-460.0,0.00020547,2]
[375919300,1753783869599,-460.0,0.00020547,2]
[375919301,1753783869610,-503.21,0.00020547,2]
[375919302,1753783869621,-486.80050922,0.00020547,2]
[375919303,1753783869630,-807.45,0.00020547,2]
[375919304,1753783869639,-460.0,0.00020547,2]
[375919305,1753783869649,-294.550465,0.00020547,2]
[375919306,1753783869659,-460.0,0.00020547,2]
[375919307,1753783869669,-460.0,0.00020547,2]
[375919308,1753783869678,-294.550465,0.00020547,2]
[375919309,1753783869688,-460.0,0.00020547,2]
[375919310,1753783869697,-460.0,0.00020547,2]
[375919311,1753783869708,-615.06,0.00020547,2]
[375919312,1753783869717,-460.0,0.00020547,2]
[375919313,1753783869727,-460.0,0.00020547,2]
[375919314,1753783869738,-460.0,0.00020547,2]
[375919315,1753783869749,-460.0,0.00020547,2]
[375919316,1753783869770,-460.0,0.00020547,2]
[375919317,1753783869780,-460.0,0.00020547,2]
[375919318,1753783869791,-460.0,0.00020547,2]
[375919319,1753783869802,-460.0,0.00020547,2]
[375919320,1753783869812,-460.0,0.00020547,2]
[375919321,1753783869823,-2896.6,0.00020547,2]
[375919322,1753783869836,-460.0,0.00020547,2]
[375919323,1753783869846,-699.26,0.00020547,2]
[375919324,1753783869856,-460.0,0.00020547,2]
[375919325,1753783869866,-460.0,0.00020547,2]
[375919326,1753783869877,-460.0,0.00020547,2]
[375919327,1753783869888,-460.0,0.00020547,2]
[375919328,1753783869898,-529.71072008,0.00020547,2]
[375919329,1753783869910,-630.99,0.00020547,2]
[375919330,1753783869921,-460.0,0.00020547,2]
[375919331,1753783869931,-460.0,0.00020547,2]
[375919332,1753783869941,-460.0,0.00020547,2]
[375919333,1753783869951,-474.9,0.00020547,2]
[375919334,1753783869961,-154.66497834,0.00020547,2]
[375919335,1753783869971,-460.0,0.00020547,2]
[375919336,1753783869982,-575.890876,0.00020547,2]
[375919337,1753783869992,-746.43,0.00020547,2]
[375919338,1753783870001,-575.890876,0.00020547,2]
[375919339,1753783870013,-460.0,0.00020547,2]
[375919340,1753783870022,-460.0,0.00020547,2]
[375919341,1753783870032,-460.0,0.00020547,2]
[375919342,1753783870041,-151.0,0.00020547,2]
[375919343,1753783870051,-480.13,0.00020547,2]
[375919344,1753783870060,-460.0,0.00020547,2]
[375919345,1753783870069,-460.0,0.00020547,2]
[375919346,1753783870079,-460.0,0.00020547,2]
[375919347,1753783870089,-460.0,0.00020547,2]
[375919348,1753783870098,-460.0,0.00020547,2]
[375919349,1753783870108,-464.44006237,0.00020547,2]
[375919350,1753783870118,-460.0,0.00020547,2]
[375919351,1753783870128,-460.0,0.00020547,2]
[375919352,1753783870137,-460.0,0.00020547,2]
[375919353,1753783870147,-533.45,0.00020547,2]
[375919354,1753783870156,-599.5814311,0.00020547,2]
[375919355,1753783870165,-612.42,0.00020547,2]
[375919356,1753783870176,-460.0,0.00020547,2]
[375919357,1753783870185,-1374.84,0.00020547,2]
[375919358,1753783870195,-460.0,0.00020547,2]
[375919359,1753783870204,-1015.95381776,0.00020547,2]
[375919360,1753783870214,-460.0,0.00020547,2]
[375919361,1753783870224,-460.0,0.00020547,2]
[375919362,1753783870234,-561.07683473,0.00020547,2]
[375919363,1753783870243,-353.12023048,0.00020547,2]
[375919364,1753783870252,-1048.05,0.00020547,2]
[375919365,1753783870263,-460.0,0.00020547,2]
[375919366,1753783870273,-3098.65,0.00020547,2]
[375919367,1753783870281,-460.0,0.00020547,2]
[375919368,1753783870291,-460.0,0.00020547,2]
[375919369,1753783870300,-460.0,0.00020547,2]
[375919370,1753783870309,-459.39197493,0.00020547,2]
[375919371,1753783870318,-460.0,0.00020547,2]
[375919372,1753783870328,-460.0,0.00020547,2]
[375919373,1753783870337,-460.0,0.00020547,2]
[375919374,1753783870346,-9691.1,0.00020547,2]
[375919375,1753783870355,-460.0,0.00020547,2]
[375919376,1753783870364,-460.0,0.00020547,2]
[375919377,1753783870373,-629.2,0.00020547,2]
[375919378,1753783870382,-8482.62,0.00020547,2]
[375919379,1753783870391,-460.0,0.00020547,2]
[375919380,1753783870400,-549.29,0.00020547,2]
[375919381,1753783870409,-460.0,0.00020547,2]
[375919382,1753783870424,-151.0,0.00020547,2]
[375919383,1753783870434,-460.0,0.00020547,2]
[375919384,1753783870443,-509.26497289,0.00020547,2]
[375919385,1753783870453,-1078.37,0.00020547,2]
[375919386,1753783870463,-460.0,0.00020547,2]
[375919387,1753783870472,-460.0,0.00020547,2]
[375919388,1753783870481,-460.0,0.00020547,2]
[375919389,1753783870491,-460.0,0.00020547,2]
[375919390,1753783870501,-460.0,0.00020547,2]
[375919391,1753783870512,-636.63,0.00020547,2]
[375919392,1753783870521,-460.0,0.00020547,2]
[375919393,1753783870530,-460.0,0.00020547,2]
[375919394,1753783870540,-460.0,0.00020547,2]
[375919395,1753783870549,-261.72744388,0.00020547,2]
[375919396,1753783870558,-460.0,0.00020547,2]
[375919397,1753783870567,-460.0,0.00020547,2]
[375919398,1753783870577,-460.0,0.00020547,2]
[375919399,1753783870586,-1309.75,0.00020547,2]